bitfinex-derivatives/quotes_ETHF0:USTF0_20250928
["timestamp","ask_amount","ask_price","bid_price","bid_amount"]
[1759070024413,0.7519563,4021.9,4021.8,1.38625]
[1759070024414,0.7437563,4021.9,4021.8,1.38625]
[1759070024917,1.6790563,4021.9,4021.8,0.9389]
[1759070025125,2.1263963,4021.9,4021.8,0.9389]
[1759070025822,2.1263963,4021.9,4021.8,0.68]
[1759070026015,1.6790563,4021.9,4021.8,0.68]
[1759070026209,2.1263963,4021.9,4021.8,0.68]
[1759070026414,1.6790563,4021.9,4021.8,0.68]
[1759070028219,1.6790563,4021.9,4021.6,0.4209]
[1759070028424,0.9353,4021.7,4021.6,0.68]
[1759070028614,1.4280563,4021.7,4021.6,0.68]
[1759070028923,1.8754163,4021.7,4021.6,0.68]
[1759070029426,11.4754163,4021.7,4021.3,0.8683]
[1759070029622,0.9353,4021.4,4021.3,0.8683]
[1759070029825,1.6790563,4021.4,4021.3,0.4209]
[1759070030020,1.6790563,4021.4,4021.3,0.68]
[1759070030914,1.6790563,4021.4,4021.3,0.9389]
[1759070031519,0.4085,4021.2,4021.1,0.2591]
[1759070031823,1.4280563,4021.2,4021.1,0.9389]
[1759070035920,1.4280563,4021.2,4021.1,0.4209]
[1759070036125,1.0929,4021.0,4020.9,3.2078]
[1759070036318,11.3066563,4021.0,4020.9,3.2078]
[1759070037723,16.3066563,4021.0,4020.9,3.2078]
[1759070037920,11.0556563,4021.0,4020.9,3.2078]
[1759070038122,50.1116563,4021.0,4020.9,3.2078]
[1759070040229,40.6426563,4021.0,4020.9,3.8682]
[1759070040526,5.0463563,4021.0,4020.9,4.137]
[1759070041122,5.4431563,4021.0,4020.9,4.137]
[1759070041929,1.2763563,4021.0,4020.9,4.137]
[1759070042131,1.0154563,4021.0,4020.9,4.137]
[1759070042521,0.7644563,4021.0,4020.9,4.137]
[1759070042726,1.0154563,4021.0,4020.9,4.137]
[1759070043027,0.4927563,4021.0,4020.9,0.9292]
[1759070043229,0.7437563,4021.0,4020.9,0.9292]
[1759070045023,1.0154563,4021.0,4020.9,0.9292]
[1759070048431,0.7437563,4021.0,4020.9,0.9292]
[1759070048629,0.4927563,4021.0,4020.9,9.137]
[1759070048833,0.251,4021.0,4020.9,9.137]
[1759070049131,0.9294,4021.7,4021.6,0.9292]
[1759070049331,3.62383746,4021.7,4021.6,0.9292]
[1759070050334,1.27703746,4021.7,4021.6,0.9292]
[1759070051529,1.67903746,4021.7,4021.6,0.9292]
[1759070056632,1.67903746,4021.7,4021.6,1.37657]
[1759070057436,1.42803746,4021.7,4021.6,1.37657]
[1759070057635,1.67903746,4021.7,4021.6,1.37657]
[1759070059640,1.67903746,4021.7,4021.6,0.9292]
[1759070064244,1.67903746,4021.7,4021.6,1.37657]
[1759070065345,1.67903746,4021.7,4021.6,0.9292]
[1759070066345,1.67903746,4021.7,4021.6,1.37657]
[1759070068048,1.67903746,4021.7,4021.6,0.9292]
[1759070069147,1.67903746,4021.7,4021.6,1.37657]
[1759070074743,1.67903746,4021.7,4021.6,0.9292]
[1759070075250,0.49343746,4021.7,4021.6,1.37657]
[1759070075443,0.49343746,4021.7,4021.6,6.37657]
[1759070075444,0.74443746,4021.7,4021.6,6.37657]
[1759070079056,0.49343746,4021.7,4021.6,6.37657]
[1759070079255,0.74443746,4021.7,4021.6,6.37657]
[1759070079454,0.74443746,4021.7,4021.6,1.37657]
[1759070082252,2.11649746,4021.7,4021.6,0.9292]
[1759070082445,2.11712028,4021.7,4021.6,0.9292]
[1759070082644,0.44741,4021.3,4021.2,3.2078]
[1759070082846,1.86617028,4021.3,4021.2,3.7141]
[1759070083254,1.86617028,4021.3,4021.2,4.119]
[1759070083956,1.86617028,4021.3,4021.2,4.56642]
[1759070084357,1.86617028,4021.3,4021.2,4.119]
[1759070084559,1.86617028,4021.3,4021.2,4.56642]
[1759070086258,1.86617028,4021.3,4021.2,4.119]
[1759070092868,1.86617028,4021.3,4021.2,4.56642]
[1759070094967,1.37211,4021.3,4021.2,4.56642]
[1759070095168,1.8663666,4021.3,4021.2,4.56642]
[1759070095970,1.8663666,4021.3,4021.2,4.119]
[1759070097273,1.8663666,4021.3,4021.2,4.56642]
[1759070099771,1.4189566,4021.3,4021.2,4.56642]
[1759070100674,1.0152566,4021.3,4021.2,4.56642]
[1759070100875,0.7624566,4021.3,4021.2,4.56642]
[1759070101073,0.4942566,4021.3,4021.2,4.56642]
[1759070102076,0.7452566,4021.3,4021.2,4.56642]
[1759070105578,0.4942566,4021.3,4021.2,4.56642]
[1759070111583,0.8811,4022.2,4022.1,0.8761]
[1759070111783,5.1921,4022.2,4022.1,0.8761]
[1759070113181,5.1921,4022.2,4022.1,1.32342]
[1759070115584,0.8811,4021.5,4021.4,1.3235]
[1759070115887,0.4996,4021.5,4021.4,1.3235]
[1759070116886,1.1321,4021.5,4021.4,1.3235]
[1759070117689,0.8811,4021.5,4021.4,1.3235]
[1759070117893,1.1321,4021.5,4021.4,1.3235]
[1759070118884,0.8811,4021.5,4021.4,1.3235]
[1759070119182,1.1321,4021.5,4021.4,1.3235]
[1759070126387,1.57949,4021.5,4021.4,0.8761]
[1759070126590,1.2888,4021.5,4021.4,1.0794]
[1759070127688,1.1321,4021.5,4021.4,1.0794]
[1759070127893,1.1321,4021.5,4021.4,1.3233]
[1759070137009,0.8811,4021.5,4021.4,1.3233]
[1759070137206,1.1321,4021.5,4021.4,1.3233]
[1759070140704,1.1321,4021.5,4021.4,0.4474]
[1759070140911,0.4923,4021.3,4021.2,3.2078]
[1759070141210,0.8515,4021.3,4021.2,3.2078]
[1759070141398,0.8515,4021.3,4021.2,3.564]
[1759070141709,0.8515,4021.3,4021.2,3.8073]
[1759070141910,1.34747347,4021.3,4021.2,3.8073]
[1759070142108,1.34747347,4021.3,4021.2,4.25471]
[1759070143514,1.34747347,4021.3,4021.2,4.0512]
[1759070143714,1.34747347,4021.3,4021.2,3.8073]
[1759070144200,1.79488347,4021.3,4021.2,4.25472]
[1759070144704,1.34747347,4021.3,4021.2,4.25472]
[1759070145101,1.79488347,4021.3,4021.2,3.8073]
[1759070145703,1.34747347,4021.3,4021.2,4.25472]
[1759070145908,1.34747347,4021.3,4021.2,3.8073]
[1759070146111,1.34747347,4021.3,4021.2,4.25472]
[1759070146411,1.34747347,4021.3,4021.2,0.5995]
[1759070148403,1.34747347,4021.3,4021.2,1.29082]
[1759070149205,0.99427347,4021.3,4021.2,1.29082]
[1759070150515,1.35347347,4021.3,4021.2,1.29082]
[1759070150915,1.59847347,4021.3,4021.2,1.29082]
[1759070153211,2.04588347,4021.3,4021.2,1.29082]
[1759070154315,1.59847347,4021.3,4021.2,1.29082]
[1759070155118,1.34747347,4021.3,4021.2,1.29082]
[1759070155419,1.59847347,4021.3,4021.2,1.29082]
[1759070164422,1.34747347,4021.3,4021.2,1.29082]
[1759070164622,1.59847347,4021.3,4021.2,1.29082]
[1759070165423,1.34747347,4021.3,4021.2,1.29082]
[1759070165622,1.59847347,4021.3,4021.2,1.29082]
[1759070165818,1.34747347,4021.3,4021.2,1.29082]
[1759070166023,0.99427347,4021.3,4021.2,1.29082]
[1759070166223,0.74697347,4021.3,4021.2,1.29082]
[1759070166521,1.37237347,4021.3,4021.2,1.29082]
[1759070166723,1.00037347,4021.3,4021.2,1.29082]
[1759070167428,1.37237347,4021.3,4021.2,1.29082]
[1759070167926,1.63087347,4021.3,4021.2,1.29082]
[1759070169328,0.8839,4021.1,4021.0,0.81614]
[1759070169522,1.37987347,4021.1,4021.0,0.81614]
[1759070169719,1.37987347,4021.1,4021.0,1.07554]
[1759070172430,1.37987347,4021.1,4021.0,0.44744]
[1759070172630,1.37987347,4021.1,4021.0,0.80114]
[1759070172823,1.37987347,4021.1,4021.0,1.04044]
[1759070178336,1.37987347,4021.1,4021.0,1.42304]
[1759070179135,0.49597347,4021.1,4021.0,1.42304]
[1759070179331,0.74697347,4021.1,4021.0,1.42304]
[1759070179735,0.99107347,4021.1,4021.0,1.42304]
[1759070181332,0.49597347,4021.1,4021.0,1.42304]
[1759070181634,1.12327256,4021.5,4021.4,1.2803]
[1759070181836,1.37427256,4021.5,4021.4,1.2803]
[1759070182132,1.62977256,4021.5,4021.4,1.2803]
[1759070182535,2.07716256,4021.5,4021.4,1.2803]
[1759070183239,2.07717062,4021.5,4021.4,1.2803]
[1759070184634,2.07717062,4021.5,4021.4,0.8329]
[1759070185931,0.237,4020.8,4020.7,3.2078]
[1759070186127,0.382,4020.5,4020.4,0.3547]
[1759070186333,0.8598,4020.5,4020.4,0.6022]
[1759070186531,1.60968062,4020.5,4020.4,0.6022]
[1759070187329,1.60968062,4020.5,4020.2,3.2078]
[1759070187330,1.75468062,4020.5,4020.2,3.2078]
[1759070187536,0.8598,4020.3,4020.2,3.4553]
[1759070187738,1.35768062,4020.3,4020.2,3.7001]
[1759070188036,1.35768062,4020.3,4020.2,4.0548]
[1759070195236,0.73488062,4020.3,4020.2,4.0548]
[1759070195542,1.35768062,4020.3,4020.2,4.0548]
[1759070198741,0.73488062,4020.3,4020.2,4.0548]
[1759070199141,1.35768062,4020.3,4020.2,4.0548]
[1759070200645,1.35768062,4020.3,4020.2,4.50232]
[1759070201143,0.49788062,4020.3,4020.2,4.50232]
[1759070203743,0.73488062,4020.3,4020.2,4.50232]
[1759070204042,0.49788062,4020.3,4020.2,4.50232]
[1759070205138,0.73488062,4020.3,4020.2,4.50232]
[1759070205634,1.11558062,4020.3,4020.2,4.50232]
[1759070206845,1.35768062,4020.3,4020.2,4.50232]
[1759070207639,0.73488062,4020.3,4020.2,4.50232]
[1759070207834,0.49788062,4020.3,4020.2,4.50232]
[1759070208037,10.45619062,4020.3,4020.1,0.00314576]
[1759070208344,10.45619062,4020.3,4019.1,0.847]
[1759070208345,0.6177,4019.2,4019.1,0.847]
[1759070208545,1.60868062,4019.2,4019.1,0.847]
[1759070209145,1.61045991,4019.2,4019.1,0.84941282]
[1759070214246,1.61045991,4019.2,4019.1,0.00241282]
[1759070214747,1.35945991,4019.2,4019.1,0.85771282]
[1759070215247,9.34045991,4019.2,4019.1,0.85771282]
[1759070220148,9.08945991,4019.2,4019.1,0.85771282]
[1759070220343,8.46665991,4019.2,4019.1,0.85771282]
[1759070220542,3.2078,4019.5,4019.4,0.44761]
[1759070220854,0.251,4019.7,4019.6,1.30289]
[1759070221051,0.3503,4020.2,4020.1,1.30284]
[1759070221244,0.8424,4020.2,4020.1,1.30284]
[1759070221751,0.84559962,4020.2,4020.1,1.30284]
[1759070227550,1.08559962,4020.2,4020.1,1.30284]
[1759070231756,0.84559962,4020.2,4020.1,1.30284]
[1759070232654,1.34048905,4020.2,4020.1,1.30284]
[1759070233460,0.84838905,4020.2,4020.1,1.30284]
[1759070233663,1.09938905,4020.2,4020.1,1.30284]
[1759070235160,0.49808905,4020.2,4020.1,1.30284]
[1759070235362,0.49808905,4020.2,4020.1,6.30284]
[1759070235562,0.74908905,4020.2,4020.1,6.30284]
[1759070236862,0.00319962,4020.2,4020.1,6.30284]
[1759070237067,1.14519962,4020.2,4020.1,0.4886]
[1759070237270,0.891,4019.9,4019.8,4.52966]
[1759070238357,0.891,4019.9,4019.8,4.16376]
[1759070238675,1.38586708,4019.9,4019.8,4.16376]
[1759070240974,1.38586708,4019.9,4019.8,4.52966]
[1759070247577,0.49486708,4019.9,4019.8,4.52966]
[1759070247979,0.74586708,4019.9,4019.8,4.52966]
[1759070250484,0.49486708,4019.9,4019.8,9.52966]
[1759070250683,0.00319962,4020.2,4019.8,9.52966]
[1759070250684,0.00319962,4020.2,4020.1,1.33073]
[1759070258395,0.38959962,4020.2,4020.1,1.33073]
[1759070258590,0.63339962,4020.2,4020.1,1.33073]
[1759070260479,0.38959962,4020.2,4020.1,1.33073]
[1759070261789,0.63339962,4020.2,4020.1,1.33073]
[1759070262592,1.12640374,4020.2,4020.1,1.33073]
[1759070265594,1.12640374,4020.2,4020.1,0.69863]
[1759070265595,1.37660374,4020.2,4020.1,0.69863]
[1759070265896,1.37660374,4020.2,4020.1,1.33073]
[1759070269293,1.12640374,4020.2,4020.1,1.33073]
[1759070269493,1.37660374,4020.2,4020.1,1.33073]
[1759070270788,1.12640374,4020.2,4020.1,1.33073]
[1759070272401,1.37660374,4020.2,4020.1,1.33073]
[1759070278006,1.12640374,4020.2,4020.1,1.33073]
[1759070278601,0.49620374,4020.2,4020.1,1.33073]
[1759070278796,0.44743,4021.1,4020.9,0.44743]
[1759070279001,0.81183,4021.1,4021.0,0.8709]
[1759070279300,1.31723,4021.1,4021.0,0.4925]
[1759070279703,0.87269844,4021.1,4021.0,0.4925]
[1759070279905,0.87269844,4021.1,4021.0,0.8709]
[1759070280205,0.87269844,4021.1,4021.0,0.4925]
[1759070280404,0.8698,4020.8,4020.7,3.90166]
[1759070280604,0.8698,4020.8,4020.7,4.52616]
[1759070282400,0.8698,4020.8,4020.7,3.2078]
[1759070282601,5.8698,4020.8,4020.7,3.2078]
[1759070288215,5.8698,4020.8,4020.7,3.65526]
[1759070288407,6.31725,4020.8,4020.7,3.65526]
[1759070288912,5.8698,4020.8,4020.7,3.65526]
[1759070289113,6.31725,4020.8,4020.7,3.65526]
[1759070289906,5.8698,4020.8,4020.7,3.65526]
[1759070290604,6.1208,4020.8,4020.7,3.65526]
[1759070290815,6.61591112,4020.8,4020.7,3.65526]
[1759070293012,6.36491112,4020.8,4020.7,3.65526]
[1759070293317,6.61591112,4020.8,4020.7,3.65526]
[1759070293613,1.61591112,4020.8,4020.7,4.52966]
[1759070293818,1.37321112,4020.8,4020.7,4.52966]
[1759070295401,0.49511112,4020.8,4020.7,4.52966]
[1759070298017,0.00289844,4021.1,4020.7,4.52966]
[1759070298018,0.00289844,4021.1,4021.0,1.46413]
[1759070298213,0.60999844,4021.1,4021.0,1.32183]
[1759070298407,1.10495698,4021.1,4021.0,1.32183]
[1759070304816,1.34275698,4021.1,4021.0,1.32183]
[1759070305120,1.34275698,4021.1,4021.0,0.44743]
[1759070305920,1.34275698,4021.1,4021.0,0.69813]
[1759070307522,1.10485698,4021.1,4021.0,1.29213]
[1759070307821,1.35025698,4021.1,4021.0,1.29213]
[1759070309025,1.09925698,4021.1,4021.0,1.29213]
[1759070314724,0.85385698,4021.1,4021.0,1.29213]
[1759070315732,1.09925698,4021.1,4021.0,1.29213]
[1759070318734,1.33385698,4021.1,4021.0,1.29213]
[1759070319039,1.33385698,4021.1,4021.0,0.93663]
[1759070319734,1.33385698,4021.1,4021.0,1.29213]
[1759070321434,1.33319881,4021.1,4021.0,1.29213]
[1759070321635,1.33319881,4021.1,4021.0,0.44743]
[1759070321828,0.8553,4020.8,4020.6,0.44748]
[1759070322035,1.60160037,4020.7,4020.6,0.44748]
[1759070324936,1.60160037,4020.7,4020.5,0.44749]
[1759070325132,1.34960037,4020.6,4020.5,0.69819]
[1759070325330,1.11500037,4020.6,4020.5,1.29219]
[1759070326528,0.49430037,4020.6,4020.5,1.29219]
[1759070326835,0.49430037,4020.6,4020.5,1.43389]
[1759070327030,0.86960037,4020.6,4020.5,1.43389]
[1759070329441,0.86960037,4020.6,4020.5,1.29219]
[1759070332639,1.11500037,4020.6,4020.5,1.29219]
[1759070332840,1.34960037,4020.6,4020.5,0.93669]
[1759070333040,1.34960037,4020.6,4020.5,1.29219]
[1759070337152,1.34960037,4020.6,4020.5,0.93669]
[1759070337649,1.34960037,4020.6,4020.5,1.28879]
[1759070342848,1.34960037,4020.6,4020.5,0.93669]
[1759070343054,0.5008,4020.3,4020.2,3.4454]
[1759070343351,0.8789,4020.3,4020.2,3.65533]
[1759070343650,1.37299965,4020.3,4020.2,3.65533]
[1759070343848,1.0264,4020.0,4019.9,3.2078]
[1759070344152,1.52049965,4020.0,4019.9,3.2078]
[1759070344755,1.52049965,4020.0,4019.9,3.4454]
[1759070347161,1.52049965,4020.0,4019.9,3.2078]
[1759070347358,1.52049965,4020.0,4019.9,3.02740858]
[1759070347359,16.66049965,4020.0,4019.9,3.02740858]
[1759070348159,16.66061507,4020.0,4019.9,3.02740858]
[1759070353462,16.91261507,4020.0,4019.9,3.02740858]
[1759070355467,10.37261507,4020.0,4019.9,3.02740858]
[1759070355968,5.12061507,4020.0,4019.9,3.02740858]
[1759070356165,5.37261507,4020.0,4019.9,3.02740858]
[1759070356968,10.37261507,4020.0,4019.9,3.02740858]
[1759070357170,16.52261507,4020.0,4019.9,3.02740858]
[1759070359671,5.45261507,4020.0,4019.9,3.02740858]
[1759070366273,5.90016507,4020.0,4019.8,0.44757]
[1759070366579,0.9501,4019.5,4019.4,3.2078]
[1759070366880,10.16631507,4019.5,4019.4,3.2078]
[1759070369781,10.16631507,4019.5,4018.1,0.5757]
[1759070369782,0.44772,4018.5,4018.1,0.5757]
[1759070369982,3.2078,4018.3,4018.2,0.3449]
[1759070370183,3.2078,4018.3,4018.2,0.5757]
[1759070370184,12.97401507,4018.3,4018.2,0.5757]
[1759070370786,12.97401507,4018.3,4018.2,0.57867226]
[1759070371582,0.49421507,4018.3,4018.2,0.80697226]
[1759070371779,0.74621507,4018.3,4018.2,0.80697226]
[1759070375889,0.49421507,4018.3,4018.2,0.80697226]
[1759070376091,0.74621507,4018.3,4018.2,0.80697226]
[1759070376591,3.95401507,4018.3,4018.2,0.57867226]
[1759070376789,3.95401507,4018.3,4018.2,0.34787226]
[1759070376986,12.26401507,4018.3,4018.2,0.34787226]
[1759070377687,12.26401507,4018.3,4018.2,0.00297226]
[1759070379899,12.26401507,4018.3,4018.2,0.34787226]
[1759070381491,12.26401507,4018.3,4018.2,0.00297226]
[1759070382791,12.26401507,4018.3,4018.2,0.34787226]
[1759070383392,12.26401507,4018.3,4018.2,0.00297226]
[1759070383990,12.26401507,4018.3,4018.2,0.34787226]
[1759070383991,12.01201507,4018.3,4018.2,0.34787226]
[1759070384293,51.09701507,4018.3,4018.2,0.00297226]
[1759070384596,12.26501507,4018.3,4018.2,0.00297226]
[1759070384893,12.26501507,4018.3,4018.2,0.34787226]
[1759070385593,51.09601507,4018.3,4017.9,0.02488893]
[1759070385789,0.44777,4018.0,4017.9,0.36978893]
[1759070385993,10.47777,4018.0,4017.9,0.02488893]
[1759070386195,11.22398507,4018.0,4017.9,0.02488893]
[1759070386693,11.22714115,4018.0,4017.9,0.02687383]
[1759070389495,0.44782,4017.6,4017.5,0.4833]
[1759070389697,13.10283507,4017.6,4017.5,0.4833]
[1759070390605,13.10283507,4017.6,4017.5,0.48615563]
[1759070391297,13.10283507,4017.6,4017.5,0.00285563]
[1759070391597,0.44787,4017.1,4017.0,0.3449]
[1759070391900,13.67288507,4017.1,4017.0,0.3449]
[1759070392399,13.67288507,4017.1,4017.0,0.4833]
[1759070392704,13.67288507,4017.1,4017.0,0.48567793]
[1759070393403,13.41988507,4017.1,4017.0,0.48567793]
[1759070393806,13.67288507,4017.1,4017.0,0.48567793]
[1759070394506,13.67288507,4017.1,4017.0,0.34987793]
[1759070396000,13.67288507,4017.1,4017.0,0.00237793]
[1759070396700,52.51388507,4017.1,4017.0,0.48907793]
[1759070397000,52.51388507,4017.1,4017.0,1e-08]
[1759070398710,52.51588507,4017.1,4017.0,1e-08]
[1759070398907,52.51588507,4017.1,4017.0,0.48670001]
[1759070399410,52.51588507,4017.1,4017.0,0.34750001]
[1759070399606,52.51588507,4017.1,4017.0,1e-08]
[1759070400208,52.51688507,4017.1,4017.0,1e-08]
[1759070400405,13.41988507,4017.1,4017.0,0.48670001]
[1759070400606,52.51788507,4017.1,4017.0,0.71990001]
[1759070401102,52.02367,4017.1,4017.0,0.71990001]
[1759070401307,52.52365158,4017.1,4017.0,0.71990001]
[1759070401512,52.52365158,4017.1,4017.0,0.48670001]
[1759070403209,13.42565158,4017.1,4017.0,0.48670001]
[1759070403413,52.52465158,4017.1,4017.0,0.48670001]
[1759070404809,13.42565158,4017.1,4017.0,0.71990001]
[1759070405108,13.67865158,4017.1,4017.0,0.95650001]
[1759070405507,4.79078158,4017.1,4017.0,0.95650001]
[1759070408416,4.53778158,4017.1,4017.0,0.95650001]
[1759070408612,4.79078158,4017.1,4017.0,0.95650001]
[1759070409612,3.70778158,4017.1,4017.0,5.95650001]
[1759070409817,3.96078158,4017.1,4017.0,5.95650001]
[1759070411020,3.70778158,4017.1,4017.0,5.95650001]
[1759070411422,3.96078158,4017.1,4017.0,5.95650001]
[1759070412526,0.75298158,4017.1,4017.0,5.95650001]
[1759070417829,0.49998158,4017.1,4017.0,5.95650001]
[1759070418230,0.75198158,4017.1,4017.0,5.95650001]
[1759070418530,0.75198158,4017.1,4017.0,6.40439001]
[1759070418833,0.23245608,4018.0,4017.9,0.8543]
[1759070419135,1.77445608,4018.0,4017.9,0.8543]
[1759070419523,2.22222608,4018.0,4017.9,1.30208]
[1759070419936,2.45212608,4018.0,4017.9,1.30208]
[1759070420134,2.00435608,4018.0,4017.9,1.30208]
[1759070420930,2.45212608,4018.0,4017.9,1.30208]
[1759070422736,2.00435608,4018.0,4017.9,1.30208]
[1759070424234,2.45212608,4018.0,4017.9,0.8543]
[1759070424435,2.80712608,4018.0,4017.9,0.8543]
[1759070424637,7.28712608,4018.0,4017.9,0.8543]
[1759070427533,7.28712608,4018.0,4017.9,1.30208]
[1759070427732,6.83935608,4018.0,4017.9,1.30208]
[1759070428038,7.28712608,4018.0,4017.9,1.30208]
[1759070429838,6.48435608,4018.0,4017.9,1.30208]
[1759070430433,0.00315608,4018.0,4017.9,1.30208]
[1759070430636,0.75375963,4018.0,4017.9,1.30208]
[1759070435244,0.50175963,4018.0,4017.9,1.30208]
[1759070435443,0.75375963,4018.0,4017.9,1.30208]
[1759070441253,0.50175963,4018.0,4017.9,1.30208]
[1759070441454,0.75375963,4018.0,4017.9,1.30208]
[1759070441651,0.50175963,4018.0,4017.9,1.30208]
[1759070441852,0.75375963,4018.0,4017.9,1.30208]
[1759070442653,0.50175963,4018.0,4017.9,1.30208]
[1759070442952,0.75375963,4018.0,4017.9,1.30208]
[1759070447946,0.50175963,4018.0,4017.9,1.30208]
[1759070448151,0.75375963,4018.0,4017.9,1.30208]
[1759070449568,0.50175963,4018.0,4017.9,1.30208]
[1759070450059,0.75275963,4018.0,4017.9,1.30208]
[1759070462467,0.50175963,4018.0,4017.9,1.30208]
[1759070462665,3.2078,4018.4,4018.3,1.28494]
[1759070463662,3.21065939,4018.4,4018.3,1.28494]
[1759070465063,3.46245939,4018.4,4018.3,1.28494]
[1759070465872,0.25465939,4018.4,4018.3,1.28494]
[1759070467465,0.83135939,4018.4,4018.3,0.79614]
[1759070468764,0.83135939,4018.4,4018.3,1.03594]
[1759070469270,0.73995939,4018.4,4018.3,1.28494]
[1759070469470,0.00285939,4018.4,4018.3,1.28494]
[1759070469665,0.25385939,4018.4,4018.3,1.28494]
[1759070470065,0.00285939,4018.4,4018.3,1.28494]
[1759070474665,0.00285939,4018.4,4018.3,4.49274]
[1759070487294,0.49712788,4018.4,4018.3,4.49274]
[1759070501298,0.69354,4019.3,4019.2,0.8364]
[1759070501902,0.69354,4019.3,4019.2,1.28404]
[1759070502301,0.69643342,4019.3,4019.2,1.28404]
[1759070505107,0.92763342,4019.3,4019.2,0.8364]
[1759070505808,0.92763342,4019.3,4019.2,1.28404]
[1759070506608,1.26183342,4019.3,4019.2,1.28404]
[1759070508606,0.92763342,4019.3,4019.2,1.28404]
[1759070509814,1.17863342,4019.3,4019.2,1.28404]
[1759070513312,1.67229553,4019.3,4019.2,1.28404]
[1759070513513,1.67229553,4019.3,4019.2,0.8364]
[1759070513713,0.5626,4018.7,4018.6,0.3641]
[1759070514016,1.53116211,4018.7,4018.6,0.3641]
[1759070515013,0.44771,4018.6,4018.4,5.64973]
[1759070515221,1.28016211,4018.5,4018.4,6.01383]
[1759070515521,1.28016211,4018.5,4018.4,6.25273]
[1759070515816,1.28016211,4018.5,4018.4,5.805]
[1759070516709,1.28016211,4018.5,4018.4,0.603]
[1759070520726,1.28016211,4018.5,4018.4,0.8425]
[1759070521117,1.53116211,4018.5,4018.4,0.8425]
[1759070521516,1.53116211,4018.5,4018.4,0.603]
[1759070524428,1.97888211,4018.5,4018.4,0.603]
[1759070529930,1.40188211,4018.5,4018.4,0.8425]
[1759070530129,1.65288211,4018.5,4018.4,0.8425]
[1759070530322,1.97888211,4018.5,4018.4,0.8425]
[1759070531432,1.20516211,4018.5,4018.4,1.29023]
[1759070531633,1.65288211,4018.5,4018.4,1.29023]
[1759070532125,1.65288211,4018.5,4018.4,0.8425]
[1759070532332,1.97208211,4018.5,4018.4,0.8425]
[1759070536035,1.72108211,4018.5,4018.4,0.8425]
[1759070536335,1.97208211,4018.5,4018.4,0.8425]
[1759070536735,1.97208211,4018.5,4018.4,1.29023]
[1759070536935,1.72108211,4018.5,4018.4,1.29023]
[1759070537136,1.97208211,4018.5,4018.4,1.29023]
[1759070537636,0.4521,4018.1,4018.0,1.06847]
[1759070537834,1.0223,4018.1,4018.0,1.06847]
[1759070538134,1.51596211,4018.1,4018.0,1.42637]
[1759070538336,1.51596211,4018.1,4018.0,0.9786]
[1759070539433,1.96422917,4018.1,4018.0,0.9786]
[1759070540135,1.51646917,4018.1,4018.0,0.9786]
[1759070540525,1.51646917,4018.1,4018.0,0.7372]
[1759070540733,1.51646917,4018.1,4018.0,0.3579]
[1759070543625,1.51646917,4018.1,4018.0,0.5949]
[1759070543834,1.51646917,4018.1,4018.0,0.9631]
[1759070544435,0.72866917,4018.1,4018.0,0.9631]
[1759070544637,0.97966917,4018.1,4018.0,0.9631]
[1759070545332,0.97966917,4018.1,4017.4,3.2078]
[1759070545333,0.3139,4018.0,4017.4,3.2078]
[1759070545541,0.7646,4017.5,4017.4,0.3415]
[1759070545740,1.50976917,4017.5,4017.4,0.3415]
[1759070545940,1.50976917,4017.5,4017.4,0.5815]
[1759070546445,1.25876917,4017.5,4017.4,0.5815]
[1759070546634,1.50976917,4017.5,4017.4,0.5815]
[1759070548440,1.19586917,4017.5,4017.4,0.8138]
[1759070548948,0.72266917,4017.5,4017.4,0.8138]
[1759070549243,0.97366917,4017.5,4017.4,0.8138]
[1759070552146,0.49416917,4017.5,4017.4,0.8138]
[1759070552348,0.251,4017.5,4017.4,0.8138]
[1759070552539,0.74516917,4017.5,4017.4,0.8138]
[1759070553349,0.97366917,4017.5,4017.4,0.8138]
[1759070555645,3.2078,4018.3,4018.2,0.92006]
[1759070555950,3.4588,4018.3,4018.2,1.26156]
[1759070556152,3.2078,4018.3,4018.2,1.26156]
[1759070556337,3.2078,4018.8,4018.2,1.26156]
[1759070556543,3.2078,4018.8,4018.7,0.4477]
[1759070556744,3.4588,4018.8,4018.7,1.2615]
[1759070558439,3.6873,4018.8,4018.7,1.2615]
[1759070562941,4.2234,4018.8,4018.7,1.2615]
[1759070565972,3.9095,4018.8,4018.7,1.2615]
[1759070567271,4.2234,4018.8,4018.7,1.2615]
[1759070567676,4.71494367,4018.8,4018.7,1.2615]
[1759070569086,0.7646,4018.1,4018.0,3.99708]
[1759070569275,1.0156,4018.1,4018.0,3.99708]
[1759070569771,1.0156,4018.1,4018.0,4.23708]
[1759070569974,1.0156,4018.1,4018.0,4.37298]
[1759070570974,0.7017,4018.1,4018.0,4.60528]
[1759070571679,0.4795,4018.1,4018.0,4.60528]
[1759070571875,0.251,4018.1,4018.0,4.60528]
[1759070572076,0.7646,4018.6,4018.5,1.16512]
[1759070572278,1.25613493,4018.6,4018.5,1.16512]
[1759070572471,1.50713493,4018.6,4018.5,1.16512]
[1759070573478,1.19323493,4018.6,4018.5,1.39742]
[1759070573788,0.94223493,4018.6,4018.5,1.39742]
[1759070573983,1.19323493,4018.6,4018.5,1.39742]
[1759070574684,0.72003493,4018.6,4018.5,1.39742]
[1759070574981,0.97103493,4018.6,4018.5,1.39742]
[1759070575576,3.2078,4018.8,4018.7,0.4477]
[1759070575874,3.69925495,4018.8,4018.7,1.2574]
[1759070576079,3.95025495,4018.8,4018.7,1.2574]
[1759070576282,3.4588,4018.8,4018.7,1.2574]
[1759070576488,4.2208,4018.8,4018.7,1.0224]
[1759070577078,4.2208,4018.8,4018.7,1.2574]
[1759070577676,3.9147,4018.8,4018.7,1.2574]
[1759070578079,3.6637,4018.8,4018.7,1.2574]
[1759070578279,3.9147,4018.8,4018.7,1.2574]
[1759070580385,4.40646734,4018.8,4018.7,1.2574]
[1759070581180,0.762,4018.1,4018.0,4.01998]
[1759070581486,1.013,4018.1,4018.0,3.65558]
[1759070581782,1.013,4018.1,4018.0,4.00178]
[1759070582379,1.5051704,4018.1,4018.0,4.00178]
[1759070582779,1.5051704,4018.1,4018.0,3.65558]
[1759070583088,1.5051704,4018.1,4018.0,3.2078]
[1759070583486,1.5051704,4018.1,4018.0,3.554]